[Event "Late-Titled-Tuesday-Blitz-April-02-2024"]
[Site "Chess.com"]
[Date "2024.04.02"]
[Round "11"]
[White "flawian2008"]
[Black "Zavgorodniy_Sergiy"]
[Result "1-0"]
[WhiteElo "2569"]
[BlackElo "2634"]
[TimeControl "180+1"]
[EndTime "16:02:54 PDT"]
[Termination "flawian2008 won by resignation"]

1. e4 {[%clk 0:02:57.6]} 1... c6 {[%clk 0:02:59.6]} 2. d4 {[%clk 0:02:57.8]}
2... d5 {[%clk 0:02:59.2]} 3. Nc3 {[%clk 0:02:58.6]} 3... dxe4 {[%clk
0:02:54.8]} 4. Nxe4 {[%clk 0:02:59.5]} 4... Bf5 {[%clk 0:02:54.5]} 5. Ng3 {[%clk
0:02:59.8]} 5... Bg6 {[%clk 0:02:54.2]} 6. Nh3 {[%clk 0:03:00.5]} 6... e6 {[%clk
0:02:52.2]} 7. Nf4 {[%clk 0:02:59.7]} 7... Bd6 {[%clk 0:02:46.9]} 8. h4 {[%clk
0:02:59.6]} 8... Qc7 {[%clk 0:02:45.2]} 9. Qf3 {[%clk 0:02:37.7]} 9... Bxc2
{[%clk 0:02:43.6]} 10. Bc4 {[%clk 0:02:38.1]} 10... Bb4+ {[%clk 0:02:32.3]} 11.
Kf1 {[%clk 0:02:19]} 11... Nf6 {[%clk 0:02:31.9]} 12. Qe2 {[%clk 0:02:12.7]}
12... Ba4 {[%clk 0:02:30]} 13. Ngh5 {[%clk 0:01:52.1]} 13... Nxh5 {[%clk
0:02:25.3]} 14. Nxh5 {[%clk 0:01:53]} 14... O-O {[%clk 0:02:21.7]} 15. Qg4
{[%clk 0:01:36.1]} 15... f5 {[%clk 0:02:21.6]} 16. Bxe6+ {[%clk 0:01:23.8]}
16... Kh8 {[%clk 0:02:21.8]} 17. Bxf5 {[%clk 0:01:24.5]} 17... Bb5+ {[%clk
0:02:22]} 18. Kg1 {[%clk 0:01:24.2]} 18... Qf7 {[%clk 0:02:12.1]} 19. Bf4 {[%clk
0:01:18.5]} 19... Be7 {[%clk 0:01:47.5]} 20. Be5 {[%clk 0:01:12.3]} 20... Bf6
{[%clk 0:01:47.6]} 21. Bxf6 {[%clk 0:01:11.9]} 21... gxf6 {[%clk 0:01:48.5]} 22.
Nf4 {[%clk 0:01:09.5]} 22... Na6 {[%clk 0:01:43.1]} 23. h5 {[%clk 0:01:09.6]}
23... Qg7 {[%clk 0:00:41.5]} 24. Ng6+ {[%clk 0:01:06.2]} 24... Kg8 {[%clk
0:00:41.6]} 25. Be6+ {[%clk 0:01:06.7]} 25... Rf7 {[%clk 0:00:41.9]} 26. Bxf7+
{[%clk 0:00:57.8]} 26... Kxf7 {[%clk 0:00:42.8]} 27. Re1 {[%clk 0:00:56.9]}
27... hxg6 {[%clk 0:00:37.1]} 28. hxg6+ {[%clk 0:00:57.8]} 28... Kf8 {[%clk
0:00:33.4]} 29. Rh7 {[%clk 0:00:57.6]} 29... Qg8 {[%clk 0:00:29.8]} 30. Qd7
{[%clk 0:00:46.1]} 30... Qxg6 {[%clk 0:00:28.1]} 31. Rh8+ {[%clk 0:00:46.5]} 1-0

[Event "Late-Titled-Tuesday-Blitz-April-02-2024"]
[Site "Chess.com"]
[Date "2024.04.02"]
[Round "11"]
[White "PetrolulSah"]
[Black "Charodej1"]
[Result "0-1"]
[WhiteElo "2212"]
[BlackElo "2372"]
[TimeControl "180+1"]
[EndTime "16:02:55 PDT"]
[Termination "Charodej1 won by resignation"]

1. d4 {[%clk 0:02:32]} 1... Nf6 {[%clk 0:02:55.7]} 2. c4 {[%clk 0:02:30.4]} 2...
g6 {[%clk 0:02:48.4]} 3. Nc3 {[%clk 0:02:30.3]} 3... d5 {[%clk 0:02:47.8]} 4.
cxd5 {[%clk 0:02:28.7]} 4... Nxd5 {[%clk 0:02:48.7]} 5. e4 {[%clk 0:02:28.9]}
5... Nxc3 {[%clk 0:02:47.4]} 6. bxc3 {[%clk 0:02:29.8]} 6... Bg7 {[%clk
0:02:47.6]} 7. Bc4 {[%clk 0:02:30.4]} 7... O-O {[%clk 0:02:47]} 8. Ne2 {[%clk
0:02:30.6]} 8... c5 {[%clk 0:02:47.5]} 9. O-O {[%clk 0:02:29.7]} 9... Nc6 {[%clk
0:02:47.9]} 10. Be3 {[%clk 0:02:26.8]} 10... cxd4 {[%clk 0:02:25.3]} 11. cxd4
{[%clk 0:02:22.7]} 11... a6 {[%clk 0:02:22.7]} 12. h3 {[%clk 0:02:14.6]} 12...
b5 {[%clk 0:02:21.8]} 13. Bd5 {[%clk 0:02:13.7]} 13... Bb7 {[%clk 0:02:21.2]}
14. Rc1 {[%clk 0:02:13.3]} 14... Rc8 {[%clk 0:02:20.6]} 15. Bxc6 {[%clk
0:02:08.5]} 15... Bxc6 {[%clk 0:02:14.5]} 16. d5 {[%clk 0:02:08.4]} 16... Bb7
{[%clk 0:02:13.4]} 17. Rxc8 {[%clk 0:02:07.5]} 17... Qxc8 {[%clk 0:02:12.1]} 18.
Qb3 {[%clk 0:02:06.6]} 18... e6 {[%clk 0:02:06.8]} 19. Rc1 {[%clk 0:02:00.8]}
19... Qd7 {[%clk 0:02:04.7]} 20. Bf4 {[%clk 0:02:00.7]} 20... Rc8 {[%clk
0:02:00.1]} 21. Rxc8+ {[%clk 0:01:54]} 21... Qxc8 {[%clk 0:02:01]} 22. dxe6
{[%clk 0:01:43.6]} 22... Qxe6 {[%clk 0:02:00]} 23. Qxe6 {[%clk 0:01:42]} 23...
fxe6 {[%clk 0:02:00.9]} 24. f3 {[%clk 0:01:42]} 24... a5 {[%clk 0:01:59.8]} 25.
Kf2 {[%clk 0:01:41]} 25... b4 {[%clk 0:02:00]} 26. e5 {[%clk 0:01:35.8]} 26...
Bd5 {[%clk 0:01:59.6]} 27. Nc1 {[%clk 0:01:32.3]} 27... a4 {[%clk 0:01:53.8]}
28. Ke2 {[%clk 0:01:30.2]} 28... Bc4+ {[%clk 0:01:46.6]} 29. Kd2 {[%clk
0:01:29.3]} 29... g5 {[%clk 0:01:40.8]} 30. Bh2 {[%clk 0:01:27.9]} 30... Kf7
{[%clk 0:01:38.9]} 31. Ke3 {[%clk 0:01:27.1]} 31... Kg6 {[%clk 0:01:31.3]} 32.
Kd4 {[%clk 0:01:26.8]} 32... Bd5 {[%clk 0:01:30.7]} 33. Kc5 {[%clk 0:01:22.7]}
33... b3 {[%clk 0:01:30.1]} 34. axb3 {[%clk 0:01:22.9]} 34... axb3 {[%clk
0:01:30.3]} 35. Nd3 {[%clk 0:01:23.2]} 35... h5 {[%clk 0:01:24.5]} 36. Kb4
{[%clk 0:01:14]} 36... Bf8+ {[%clk 0:01:09.8]} 37. Kc3 {[%clk 0:01:13.3]} 37...
Ba3 {[%clk 0:01:09]} 38. Bg1 {[%clk 0:01:05.3]} 38... Kf5 {[%clk 0:01:04]} 39.
Be3 {[%clk 0:01:04.3]} 39... g4 {[%clk 0:00:59.4]} 40. fxg4+ {[%clk 0:01:01.3]}
40... hxg4 {[%clk 0:01:00.3]} 41. hxg4+ {[%clk 0:00:58.1]} 41... Kxg4 {[%clk
0:01:00.5]} 42. Nc5 {[%clk 0:00:55.3]} 42... b2 {[%clk 0:00:54.4]} 43. Kc2
{[%clk 0:00:46.5]} 43... Ba2 {[%clk 0:00:53.8]} 0-1

[Event "Late-Titled-Tuesday-Blitz-April-02-2024"]
[Site "Chess.com"]
[Date "2024.04.02"]
[Round "11"]
[White "GMAkobianSTL"]
[Black "Zkid"]
[Result "0-1"]
[WhiteElo "2805"]
[BlackElo "2865"]
[TimeControl "180+1"]
[EndTime "16:03:01 PDT"]
[Termination "Zkid won by resignation"]

1. d4 {[%clk 0:03:00.9]} 1... d5 {[%clk 0:02:59.3]} 2. c4 {[%clk 0:02:59.5]}
2... dxc4 {[%clk 0:03:00.2]} 3. e3 {[%clk 0:02:58.8]} 3... Nf6 {[%clk
0:03:00.2]} 4. Bxc4 {[%clk 0:02:58.7]} 4... e6 {[%clk 0:03:00.9]} 5. Nf3 {[%clk
0:02:58.5]} 5... c5 {[%clk 0:03:01.5]} 6. O-O {[%clk 0:02:58.6]} 6... Nc6 {[%clk
0:03:02.1]} 7. a3 {[%clk 0:02:55.5]} 7... a6 {[%clk 0:03:00.5]} 8. dxc5 {[%clk
0:02:53.4]} 8... Qxd1 {[%clk 0:03:00]} 9. Rxd1 {[%clk 0:02:53]} 9... Bxc5 {[%clk
0:03:00.6]} 10. b4 {[%clk 0:02:53.2]} 10... Be7 {[%clk 0:03:00.7]} 11. Bb2
{[%clk 0:02:53.6]} 11... b5 {[%clk 0:02:58.6]} 12. Be2 {[%clk 0:02:53]} 12...
Bb7 {[%clk 0:02:58.2]} 13. Nbd2 {[%clk 0:02:53.4]} 13... O-O {[%clk 0:02:51.4]}
14. Nb3 {[%clk 0:02:51.9]} 14... Rac8 {[%clk 0:02:50.2]} 15. Rac1 {[%clk
0:02:50.4]} 15... Rfd8 {[%clk 0:02:50]} 16. Rxd8+ {[%clk 0:02:46.3]} 16... Rxd8
{[%clk 0:02:49.2]} 17. Nc5 {[%clk 0:02:44.7]} 17... Bxc5 {[%clk 0:02:49.1]} 18.
Rxc5 {[%clk 0:02:43.9]} 18... Ne4 {[%clk 0:02:49.2]} 19. Rc2 {[%clk 0:02:38.8]}
19... f6 {[%clk 0:02:47.5]} 20. Ne1 {[%clk 0:02:23.4]} 20... Rd2 {[%clk
0:02:23.8]} 21. f3 {[%clk 0:02:19.5]} 21... Rxc2 {[%clk 0:02:20.3]} 22. Nxc2
{[%clk 0:02:20.4]} 22... Nd6 {[%clk 0:02:17.3]} 23. e4 {[%clk 0:02:19.9]} 23...
e5 {[%clk 0:02:14.3]} 24. Kf2 {[%clk 0:02:17.6]} 24... Kf7 {[%clk 0:02:13.6]}
25. Ne3 {[%clk 0:02:14.5]} 25... Ke6 {[%clk 0:02:08.4]} 26. Bd1 {[%clk
0:02:13.4]} 26... a5 {[%clk 0:01:54.1]} 27. Bb3+ {[%clk 0:02:12.5]} 27... Kd7
{[%clk 0:01:53.6]} 28. Bc3 {[%clk 0:02:10.1]} 28... axb4 {[%clk 0:01:50.8]} 29.
axb4 {[%clk 0:02:09.6]} 29... Bc8 {[%clk 0:01:40.9]} 30. h4 {[%clk 0:01:59.6]}
30... Ke7 {[%clk 0:01:39.3]} 31. Nd5+ {[%clk 0:01:57]} 31... Kd8 {[%clk
0:01:36.8]} 32. Nb6 {[%clk 0:01:51.1]} 32... Kc7 {[%clk 0:01:33.6]} 33. Nxc8
{[%clk 0:01:47.8]} 33... Kxc8 {[%clk 0:01:34.5]} 34. Ke3 {[%clk 0:01:45.6]}
34... Ne8 {[%clk 0:01:26.8]} 35. h5 {[%clk 0:01:35.7]} 35... h6 {[%clk
0:01:24.3]} 36. g3 {[%clk 0:01:35]} 36... Nc7 {[%clk 0:01:22.6]} 37. Bc2 {[%clk
0:01:27.1]} 37... Kb7 {[%clk 0:01:20.3]} 38. f4 {[%clk 0:01:22.7]} 38... Na6
{[%clk 0:01:18.7]} 39. fxe5 {[%clk 0:01:20.4]} 39... fxe5 {[%clk 0:01:17.5]} 40.
Bb3 {[%clk 0:01:13.8]} 40... Naxb4 {[%clk 0:01:12.6]} 41. Bg8 {[%clk 0:01:10.6]}
41... Kc7 {[%clk 0:01:06.9]} 42. Kf3 {[%clk 0:01:05.2]} 42... Nc2 {[%clk
0:01:06.4]} 43. Ke2 {[%clk 0:00:57.9]} 43... Kd6 {[%clk 0:01:01.9]} 44. Kd3
{[%clk 0:00:56.8]} 44... N2d4 {[%clk 0:01:01.7]} 45. Bd5 {[%clk 0:00:55.1]}
45... Kc5 {[%clk 0:00:58.2]} 46. g4 {[%clk 0:00:50.7]} 46... Nb4+ {[%clk
0:00:56.9]} 47. Ke3 {[%clk 0:00:47.4]} 47... Nxd5+ {[%clk 0:00:55.9]} 48. exd5
{[%clk 0:00:48.3]} 48... Kxd5 {[%clk 0:00:56.7]} 49. Bb4 {[%clk 0:00:48.9]}
49... Nc2+ {[%clk 0:00:54.9]} 0-1

[Event "Late-Titled-Tuesday-Blitz-April-02-2024"]
[Site "Chess.com"]
[Date "2024.04.02"]
[Round "11"]
[White "Byniolus"]
[Black "albi1999"]
[Result "0-1"]
[WhiteElo "2767"]
[BlackElo "2636"]
[TimeControl "180+1"]
[EndTime "16:03:06 PDT"]
[Termination "albi1999 won by resignation"]

1. e4 {[%clk 0:03:00.9]} 1... c5 {[%clk 0:02:58.3]} 2. d4 {[%clk 0:02:58.8]}
2... cxd4 {[%clk 0:02:58.3]} 3. c3 {[%clk 0:02:59.4]} 3... dxc3 {[%clk
0:02:53.4]} 4. Nxc3 {[%clk 0:03:00.3]} 4... Nc6 {[%clk 0:02:53.9]} 5. Nf3 {[%clk
0:02:59.2]} 5... e6 {[%clk 0:02:53.9]} 6. Bc4 {[%clk 0:02:59.4]} 6... a6 {[%clk
0:02:54]} 7. O-O {[%clk 0:02:59.5]} 7... b5 {[%clk 0:02:53.8]} 8. Bb3 {[%clk
0:02:59.8]} 8... Bb7 {[%clk 0:02:54.5]} 9. Qe2 {[%clk 0:03:00.1]} 9... Nge7
{[%clk 0:02:53.7]} 10. Bg5 {[%clk 0:02:54.3]} 10... f6 {[%clk 0:02:47.6]} 11.
Bh4 {[%clk 0:02:52.9]} 11... Ng6 {[%clk 0:02:47.5]} 12. Bg3 {[%clk 0:02:53.4]}
12... Be7 {[%clk 0:02:41.8]} 13. Rfd1 {[%clk 0:02:41.4]} 13... Qb6 {[%clk
0:02:33.9]} 14. Rd2 {[%clk 0:02:21.6]} 14... Rd8 {[%clk 0:02:31.6]} 15. Rad1
{[%clk 0:02:21.8]} 15... Na5 {[%clk 0:02:14.1]} 16. h4 {[%clk 0:02:06.4]} 16...
Nxb3 {[%clk 0:02:11.3]} 17. axb3 {[%clk 0:02:07.3]} 17... d6 {[%clk 0:02:02.9]}
18. h5 {[%clk 0:02:00.7]} 18... Ne5 {[%clk 0:02:02.9]} 19. Nd4 {[%clk
0:02:00.9]} 19... Kf7 {[%clk 0:01:43.2]} 20. Kh1 {[%clk 0:01:37.6]} 20... g5
{[%clk 0:01:24.8]} 21. f4 {[%clk 0:01:19.8]} 21... gxf4 {[%clk 0:01:24.1]} 22.
Bxf4 {[%clk 0:01:20.7]} 22... Rhg8 {[%clk 0:01:19.8]} 23. Rf1 {[%clk 0:01:20.6]}
23... Ng4 {[%clk 0:01:17]} 24. Bg3 {[%clk 0:00:59.6]} 24... Qc5 {[%clk
0:01:15.7]} 25. Nf5 {[%clk 0:00:37.7]} 25... exf5 {[%clk 0:01:06]} 26. Rxf5
{[%clk 0:00:38.6]} 26... Ne5 {[%clk 0:00:57.7]} 27. Bh4 {[%clk 0:00:38]} 27...
Bc8 {[%clk 0:00:47.8]} 28. b4 {[%clk 0:00:20.7]} 28... Qc4 {[%clk 0:00:43.1]}
0-1

[Event "Late-Titled-Tuesday-Blitz-April-02-2024"]
[Site "Chess.com"]
[Date "2024.04.02"]
[Round "11"]
[White "VD_coach"]
[Black "dedpihto_v_kozhanom_palto"]
[Result "0-1"]
[WhiteElo "2586"]
[BlackElo "2720"]
[TimeControl "180+1"]
[EndTime "16:03:08 PDT"]
[Termination "dedpihto_v_kozhanom_palto won on time"]

1. d4 {[%clk 0:03:00.9]} 1... g6 {[%clk 0:02:58.5]} 2. Nf3 {[%clk 0:02:51.1]}
2... Bg7 {[%clk 0:02:57.5]} 3. c4 {[%clk 0:02:51.5]} 3... d6 {[%clk 0:02:57.2]}
4. g3 {[%clk 0:02:51.9]} 4... Nc6 {[%clk 0:02:57.7]} 5. Bg2 {[%clk 0:02:52.4]}
5... Nf6 {[%clk 0:02:58.1]} 6. O-O {[%clk 0:02:52.6]} 6... O-O {[%clk
0:02:58.7]} 7. Nc3 {[%clk 0:02:52.5]} 7... Bg4 {[%clk 0:02:59.4]} 8. Be3 {[%clk
0:02:46.3]} 8... Bxf3 {[%clk 0:02:59.7]} 9. exf3 {[%clk 0:02:44.1]} 9... Nd7
{[%clk 0:03:00.6]} 10. Rc1 {[%clk 0:02:37.8]} 10... e5 {[%clk 0:03:01]} 11. dxe5
{[%clk 0:02:35.8]} 11... Ndxe5 {[%clk 0:03:01.9]} 12. b3 {[%clk 0:02:35.9]}
12... Re8 {[%clk 0:03:00.8]} 13. f4 {[%clk 0:02:35.7]} 13... Nd7 {[%clk
0:03:00.9]} 14. Re1 {[%clk 0:02:35.2]} 14... Nc5 {[%clk 0:03:01]} 15. Nd5 {[%clk
0:02:35.1]} 15... a5 {[%clk 0:02:52.1]} 16. h4 {[%clk 0:02:24.9]} 16... h5
{[%clk 0:02:51.5]} 17. f5 {[%clk 0:02:20.9]} 17... Kh7 {[%clk 0:02:48.2]} 18.
fxg6+ {[%clk 0:02:20.8]} 18... fxg6 {[%clk 0:02:49.1]} 19. Bxc5 {[%clk
0:02:16.4]} 19... Rxe1+ {[%clk 0:02:47.2]} 20. Qxe1 {[%clk 0:02:16.5]} 20...
dxc5 {[%clk 0:02:48.1]} 21. Be4 {[%clk 0:01:55]} 21... Qd6 {[%clk 0:02:40.9]}
22. Qe2 {[%clk 0:01:50.4]} 22... Nd4 {[%clk 0:02:38.7]} 23. Qxh5+ {[%clk
0:01:46.9]} 23... Kg8 {[%clk 0:02:39.4]} 24. Bxg6 {[%clk 0:01:43.8]} 24... c6
{[%clk 0:02:36.2]} 25. Nf4 {[%clk 0:01:28.2]} 25... Rd8 {[%clk 0:02:33.1]} 26.
Re1 {[%clk 0:01:24.5]} 26... Kf8 {[%clk 0:02:24]} 27. Bf7 {[%clk 0:01:10.5]}
27... Qf6 {[%clk 0:02:23.3]} 28. Be6 {[%clk 0:01:00.2]} 28... Bh6 {[%clk
0:02:16.5]} 29. Ng6+ {[%clk 0:00:21.5]} 29... Kg7 {[%clk 0:02:16.5]} 30. Re4
{[%clk 0:00:10.3]} 30... Nxe6 {[%clk 0:02:09.8]} 31. Rg4 {[%clk 0:00:10.4]}
31... Kh7 {[%clk 0:02:10.4]} 32. Ne7 {[%clk 0:00:05.3]} 32... Rf8 {[%clk
0:02:02.1]} 33. f4 {[%clk 0:00:03.1]} 33... Ng7 {[%clk 0:01:09.9]} 34. Qg6+
{[%clk 0:00:01.8]} 34... Qxg6 {[%clk 0:01:08.7]} 35. Nxg6 {[%clk 0:00:01.9]}
35... Re8 {[%clk 0:01:09.3]} 36. Ne5 {[%clk 0:00:02.2]} 36... Nf5 {[%clk
0:01:08.6]} 0-1

[Event "Late-Titled-Tuesday-Blitz-April-02-2024"]
[Site "Chess.com"]
[Date "2024.04.02"]
[Round "11"]
[White "Defend1r"]
[Black "Smiechu"]
[Result "1-0"]
[WhiteElo "2655"]
[BlackElo "2503"]
[TimeControl "180+1"]
[EndTime "16:03:11 PDT"]
[Termination "Defend1r won by checkmate"]

1. e4 {[%clk 0:03:00.9]} 1... c5 {[%clk 0:02:59.3]} 2. Nf3 {[%clk 0:03:00.4]}
2... g6 {[%clk 0:02:59.6]} 3. c3 {[%clk 0:02:57.8]} 3... Bg7 {[%clk 0:02:59.1]}
4. d4 {[%clk 0:02:58.4]} 4... cxd4 {[%clk 0:02:59.7]} 5. Nxd4 {[%clk 0:02:59.2]}
5... Nc6 {[%clk 0:02:58.9]} 6. Nxc6 {[%clk 0:02:57.8]} 6... bxc6 {[%clk
0:02:58.3]} 7. Be2 {[%clk 0:02:57.3]} 7... d5 {[%clk 0:02:55.9]} 8. h4 {[%clk
0:02:57.9]} 8... h5 {[%clk 0:02:55]} 9. Nd2 {[%clk 0:02:55.7]} 9... Nf6 {[%clk
0:02:54.1]} 10. exd5 {[%clk 0:02:51.7]} 10... cxd5 {[%clk 0:02:52.4]} 11. Nf3
{[%clk 0:02:51.5]} 11... Bg4 {[%clk 0:02:20.2]} 12. Be3 {[%clk 0:02:51.3]} 12...
O-O {[%clk 0:02:14.8]} 13. Bd4 {[%clk 0:02:50.8]} 13... Bxf3 {[%clk 0:02:11.8]}
14. Bxf3 {[%clk 0:02:50.6]} 14... e6 {[%clk 0:02:12]} 15. O-O {[%clk 0:02:49.7]}
15... Qd6 {[%clk 0:01:54.5]} 16. Re1 {[%clk 0:02:48.8]} 16... Nd7 {[%clk
0:01:53.8]} 17. Bxg7 {[%clk 0:02:48.3]} 17... Kxg7 {[%clk 0:01:53.8]} 18. Qd4+
{[%clk 0:02:46.7]} 18... Kg8 {[%clk 0:01:53.9]} 19. a4 {[%clk 0:02:45.5]} 19...
Qc5 {[%clk 0:01:53.1]} 20. Qd2 {[%clk 0:02:42]} 20... Rfc8 {[%clk 0:01:50.6]}
21. Re3 {[%clk 0:02:40.5]} 21... Rab8 {[%clk 0:01:46.9]} 22. b4 {[%clk
0:02:39.7]} 22... Qc7 {[%clk 0:01:41.5]} 23. Qe2 {[%clk 0:02:35]} 23... Qc4
{[%clk 0:01:37.6]} 24. Bxh5 {[%clk 0:02:24.6]} 24... gxh5 {[%clk 0:01:25.1]} 25.
Qxh5 {[%clk 0:02:25.5]} 25... Kf8 {[%clk 0:01:18.8]} 26. Rf3 {[%clk 0:02:22.5]}
26... f6 {[%clk 0:01:05.3]} 27. Qh7 {[%clk 0:02:18.7]} 27... Ke8 {[%clk
0:01:01]} 28. Rg3 {[%clk 0:02:15.7]} 28... Kd8 {[%clk 0:00:58.1]} 29. Rg7 {[%clk
0:02:12.1]} 29... Qc6 {[%clk 0:00:56.6]} 30. Re1 {[%clk 0:02:02.4]} 30... Kc7
{[%clk 0:00:53.9]} 31. c4 {[%clk 0:01:54.4]} 31... dxc4 {[%clk 0:00:48.7]} 32.
Rd1 {[%clk 0:01:50.1]} 32... Rd8 {[%clk 0:00:48.8]} 33. b5 {[%clk 0:01:50.3]}
33... Qd5 {[%clk 0:00:36.7]} 34. Rxd5 {[%clk 0:01:47.7]} 34... exd5 {[%clk
0:00:37.3]} 35. Qf5 {[%clk 0:01:42.8]} 35... Kd6 {[%clk 0:00:35.1]} 36. h5
{[%clk 0:01:42.5]} 36... Rbc8 {[%clk 0:00:30.7]} 37. Qf4+ {[%clk 0:01:37.2]}
37... Kc5 {[%clk 0:00:29.6]} 38. h6 {[%clk 0:01:29.3]} 38... c3 {[%clk
0:00:29.6]} 39. h7 {[%clk 0:01:26.1]} 39... c2 {[%clk 0:00:26.9]} 40. h8=Q
{[%clk 0:01:04.3]} 40... Rxh8 {[%clk 0:00:25.2]} 41. Rxd7 {[%clk 0:01:04.3]}
41... Kb6 {[%clk 0:00:17.1]} 42. Qd4+ {[%clk 0:01:02.8]} 42... Ka5 {[%clk
0:00:16]} 43. Rxa7# {[%clk 0:01:02.6]} 1-0

[Event "Late-Titled-Tuesday-Blitz-April-02-2024"]
[Site "Chess.com"]
[Date "2024.04.02"]
[Round "11"]
[White "Fh2411"]
[Black "Heliosis11"]
[Result "1-0"]
[WhiteElo "2564"]
[BlackElo "2415"]
[TimeControl "180+1"]
[EndTime "16:03:11 PDT"]
[Termination "Fh2411 won by resignation"]

1. d4 {[%clk 0:03:00.9]} 1... Nf6 {[%clk 0:02:57.5]} 2. Nf3 {[%clk 0:03:01.1]}
2... e6 {[%clk 0:02:55.7]} 3. Bf4 {[%clk 0:03:01.5]} 3... c5 {[%clk 0:02:52.6]}
4. e3 {[%clk 0:03:01.7]} 4... Be7 {[%clk 0:02:50.8]} 5. c3 {[%clk 0:03:00.2]}
5... Nc6 {[%clk 0:02:38.3]} 6. Nbd2 {[%clk 0:02:59.7]} 6... Nh5 {[%clk
0:02:33.7]} 7. Bg3 {[%clk 0:02:49]} 7... Nxg3 {[%clk 0:02:32.6]} 8. hxg3 {[%clk
0:02:48.9]} 8... cxd4 {[%clk 0:02:30.1]} 9. exd4 {[%clk 0:02:48.6]} 9... b6
{[%clk 0:02:26.9]} 10. Bd3 {[%clk 0:02:47]} 10... h6 {[%clk 0:02:24.2]} 11. Qe2
{[%clk 0:02:33.4]} 11... Bb7 {[%clk 0:02:21.4]} 12. g4 {[%clk 0:02:33.7]} 12...
Rc8 {[%clk 0:02:02.6]} 13. Ne4 {[%clk 0:02:27.4]} 13... d6 {[%clk 0:01:44.1]}
14. Ng3 {[%clk 0:01:57]} 14... Nb8 {[%clk 0:01:10.2]} 15. O-O-O {[%clk
0:01:46.3]} 15... Nd7 {[%clk 0:01:09]} 16. Nh5 {[%clk 0:01:38.5]} 16... Bf6
{[%clk 0:01:07.2]} 17. Kb1 {[%clk 0:01:32.8]} 17... g6 {[%clk 0:00:39.5]} 18.
Nf4 {[%clk 0:01:18.6]} 18... Qe7 {[%clk 0:00:30.7]} 19. Ka1 {[%clk 0:01:14]}
19... e5 {[%clk 0:00:26.8]} 20. dxe5 {[%clk 0:01:04.1]} 20... dxe5 {[%clk
0:00:27.7]} 21. Bb5 {[%clk 0:01:02.6]} 21... Rd8 {[%clk 0:00:22.9]} 22. Nd5
{[%clk 0:01:01.5]} 22... Bxd5 {[%clk 0:00:22.1]} 23. Rxd5 {[%clk 0:01:02.4]}
23... Kf8 {[%clk 0:00:20.3]} 24. Rhd1 {[%clk 0:01:01]} 24... e4 {[%clk 0:00:18]}
25. Ne1 {[%clk 0:00:56.8]} 25... Kg7 {[%clk 0:00:11.5]} 26. Bxd7 {[%clk
0:00:53.8]} 26... Rxd7 {[%clk 0:00:12]} 27. Rxd7 {[%clk 0:00:53.6]} 27... Qe6
{[%clk 0:00:12.4]} 28. Nc2 {[%clk 0:00:51.9]} 28... Re8 {[%clk 0:00:09.1]} 29.
Ne3 {[%clk 0:00:51.3]} 29... Qc6 {[%clk 0:00:08.1]} 30. Qc4 {[%clk 0:00:49.5]}
30... Qa8 {[%clk 0:00:05.3]} 1-0

[Event "Late-Titled-Tuesday-Blitz-April-02-2024"]
[Site "Chess.com"]
[Date "2024.04.02"]
[Round "11"]
[White "AlexandreHouhou"]
[Black "Supelyel"]
[Result "0-1"]
[WhiteElo "2361"]
[BlackElo "2422"]
[TimeControl "180+1"]
[EndTime "16:03:15 PDT"]
[Termination "Supelyel won by checkmate"]

1. e4 {[%clk 0:03:00.9]} 1... d6 {[%clk 0:02:58.8]} 2. d4 {[%clk 0:03:00.7]}
2... Nf6 {[%clk 0:02:56.9]} 3. Bd3 {[%clk 0:02:56.2]} 3... e5 {[%clk 0:02:55.2]}
4. c3 {[%clk 0:02:54.2]} 4... Be7 {[%clk 0:02:54.5]} 5. Nf3 {[%clk 0:02:53.1]}
5... Bg4 {[%clk 0:02:49]} 6. h3 {[%clk 0:02:53.3]} 6... Bxf3 {[%clk 0:02:49.1]}
7. Qxf3 {[%clk 0:02:54.2]} 7... Nbd7 {[%clk 0:02:49]} 8. O-O {[%clk 0:02:53.9]}
8... O-O {[%clk 0:02:49.1]} 9. Nd2 {[%clk 0:02:52.4]} 9... c6 {[%clk 0:02:49.5]}
10. Re1 {[%clk 0:02:52]} 10... Qc7 {[%clk 0:02:49.5]} 11. a4 {[%clk 0:02:49.4]}
11... a5 {[%clk 0:02:47.7]} 12. Nf1 {[%clk 0:02:49.6]} 12... Rfe8 {[%clk
0:02:40.6]} 13. Ne3 {[%clk 0:02:49.8]} 13... Bf8 {[%clk 0:02:39.2]} 14. Nf5
{[%clk 0:02:49.6]} 14... Kh8 {[%clk 0:02:29.7]} 15. Bg5 {[%clk 0:02:46.4]} 15...
Ng8 {[%clk 0:02:13.1]} 16. Bc4 {[%clk 0:02:39.3]} 16... f6 {[%clk 0:01:54.1]}
17. Be3 {[%clk 0:02:37.7]} 17... Nb6 {[%clk 0:01:38.5]} 18. Bb3 {[%clk
0:02:35.2]} 18... g6 {[%clk 0:01:36.1]} 19. Ng3 {[%clk 0:02:29.5]} 19... Bg7
{[%clk 0:01:32.2]} 20. h4 {[%clk 0:02:29]} 20... Ne7 {[%clk 0:00:46.9]} 21. h5
{[%clk 0:02:24.4]} 21... g5 {[%clk 0:00:46.8]} 22. h6 {[%clk 0:02:20.4]} 22...
Bxh6 {[%clk 0:00:46.7]} 23. Qxf6+ {[%clk 0:02:19.9]} 23... Bg7 {[%clk
0:00:46.8]} 24. Qxg5 {[%clk 0:02:19.9]} 24... Ng6 {[%clk 0:00:45.3]} 25. Nf5
{[%clk 0:02:17.5]} 25... Rf8 {[%clk 0:00:40.3]} 26. Kh2 {[%clk 0:02:10.9]} 26...
Bf6 {[%clk 0:00:35.2]} 27. Qh6 {[%clk 0:02:03.9]} 27... d5 {[%clk 0:00:25.5]}
28. Rh1 {[%clk 0:01:58.5]} 28... exd4+ {[%clk 0:00:19.8]} 29. Kg1 {[%clk
0:01:49.3]} 29... dxe3 {[%clk 0:00:20.2]} 30. Qxg6 {[%clk 0:01:47.2]} 30...
exf2+ {[%clk 0:00:20.6]} 31. Kxf2 {[%clk 0:01:45.1]} 31... dxe4 {[%clk
0:00:21.2]} 32. Rh5 {[%clk 0:01:28]} 32... Rad8 {[%clk 0:00:17.3]} 33. Rah1
{[%clk 0:01:23.6]} 33... Rd7 {[%clk 0:00:13.2]} 34. Be6 {[%clk 0:01:03.6]} 34...
Qf4+ {[%clk 0:00:12.4]} 35. Kg1 {[%clk 0:00:42.6]} 35... Rd1# {[%clk 0:00:12.1]}
0-1